fUST/lending_fUST_20240923
["ID","MTS","AMOUNT","RATE_DAILY","PERIOD"]
[338893158,1727032241418,-500.0,0.0002129,2]
[338893159,1727032241428,-500.0,0.0002129,2]
[338893160,1727032241439,-500.0,0.0002129,2]
[338893161,1727032241448,-200.0,0.0002129,2]
[338893162,1727032241457,-500.0,0.0002129,2]
[338893163,1727032241467,-500.0,0.0002129,2]
[338893164,1727032241476,-500.0,0.0002129,2]
[338893165,1727032241486,-500.0,0.0002129,2]
[338893166,1727032241496,-1000.0,0.0002129,2]
[338893167,1727032241506,-1000.0,0.0002129,2]
[338893168,1727032241516,-151.0,0.0002129,2]
[338893169,1727032241525,-60584.3347597,0.00021291,3]
[338893170,1727032241535,-65437.6703967,0.00021291,3]
[338893171,1727032241544,-274.21000001,0.000213,2]
[338893172,1727032241554,-1000.0,0.000213,2]
[338893173,1727032241563,-39474.62895739,0.00021301,3]
[338893174,1727032241572,-151.0,0.00021301,2]
[338893175,1727032241582,-192.96396055,0.00021307,2]
[338893176,1727032241592,-782.06305907,0.0002131,2]
[338893177,1727032241602,-1085.99528949,0.0002131,2]
[338893178,1727032241612,-6688.6402436,0.0002133,2]
[338893179,1727032241622,-6855.7141747,0.00021338,2]
[338893180,1727032241631,-34037.22348024,0.00021369,3]
[338893192,1727032243636,-3622.34482225,0.00021369,3]
[338893193,1727032243648,-452.112233,0.00021369,3]
[338893194,1727032243661,-978.55158081,0.00021369,3]
[338893199,1727032246795,-162.18196595,0.00021187,2]
[338893200,1727032246804,-1000.0,0.0002119,2]
[338893201,1727032246813,-711.86672542,0.00021369,3]
[338893202,1727032246828,-20782.23591798,0.00021369,3]
[338893203,1727032246837,-9940.20430913,0.00021369,3]
[338893272,1727033135111,-155.17923294,0.00019801,2]
[338893273,1727033135133,-258.622775,0.00019901,2]
[338893274,1727033135154,-828.28886902,0.00019901,2]
[338893293,1727033159104,-528.92928258,0.00019901,2]
[338893294,1727033159128,-192.96396055,0.0001991,2]
[338893295,1727033159152,-1135.94508729,0.00020001,2]
[338893300,1727033250088,-602.24148981,0.00020001,2]
[338893301,1727033250111,-162.363962,0.00020102,2]
[338893302,1727033250133,-330.05090625,0.00020278,2]
[338893303,1727033250157,-162.363962,0.00020625,2]
[338893304,1727033250178,-153.0,0.000208,2]
[338893305,1727033250199,-3695.88825086,0.00020866,2]
[338893306,1727033256187,2100.0,0.00025,120]
[338893311,1727033345108,-478.45338864,0.000167,2]
[338893352,1727033432537,-155.17923291,0.00020804,2]
[338893354,1727033432546,-800.99073213,0.00020895,2]
[338893356,1727033432556,-153.0,0.00020904,2]
[338893358,1727033432565,-153.0,0.00020904,2]
[338893359,1727033432574,-153.0,0.00020904,2]
[338893361,1727033432583,-153.0,0.00020904,2]
[338893363,1727033432593,-155.17923291,0.00020982,2]
[338893364,1727033432602,-162.363962,0.00021149,2]
[338893365,1727033432611,-155.17923291,0.00021159,2]
[338893366,1727033432621,-2684.92336252,0.00021159,2]
[338893367,1727033432631,-156.41261183,0.00021172,2]
[338893368,1727033432640,-1085.99528949,0.00021188,2]
[338893369,1727033432649,-156.41261181,0.00021194,2]
[338893370,1727033432658,-156.41261181,0.00021217,2]
[338893372,1727033432667,-1055.90650596,0.00021222,2]
[338893376,1727033432809,-533.17618188,0.00021222,2]
[338893377,1727033432819,-34.14699267,0.00021239,2]
[338893378,1727033432830,-122.26561914,0.00021239,2]
[338893379,1727033432839,-300.0,0.00021249,2]
[338893380,1727033432849,-18440.23438086,0.0002125,3]
[338893393,1727033438731,-1063.72380912,0.0002125,3]
[338893395,1727033438839,-622.76794784,0.0002125,3]
[338893417,1727033443392,-27400.9906486,0.0002125,3]
[338893418,1727033443402,-1000.0,0.00021259,2]
[338893419,1727033443412,-156.41261181,0.00021261,2]
[338893420,1727033443424,-153.93,0.00021261,3]
[338893422,1727033443435,-461.79,0.00021261,3]
[338893423,1727033443444,-500.0,0.00021269,2]
[338893424,1727033443453,-500.0,0.00021269,2]
[338893425,1727033443462,-500.0,0.00021269,2]
[338893426,1727033443471,-500.0,0.00021269,2]
[338893427,1727033443480,-500.0,0.00021269,2]
[338893428,1727033443490,-500.0,0.00021269,2]
[338893429,1727033443500,-500.0,0.00021269,2]
[338893430,1727033443509,-500.0,0.00021269,2]
[338893431,1727033443520,-170.5566532,0.0002127,2]
[338893432,1727033443529,-450.00395345,0.0002127,2]
[338893433,1727033443539,-500.0,0.0002127,2]
[338893434,1727033443548,-500.0,0.0002127,2]
[338893435,1727033443558,-500.0,0.0002127,2]
[338893436,1727033443568,-500.0,0.0002127,2]
[338893437,1727033443577,-500.0,0.0002127,2]
[338893439,1727033443586,-500.0,0.0002127,2]
[338893440,1727033443595,-500.0,0.0002127,2]
[338893441,1727033443604,-500.0,0.0002127,2]
[338893442,1727033443615,-500.0,0.0002127,2]
[338893443,1727033443625,-500.0,0.0002127,2]
[338893444,1727033443635,-500.0,0.0002127,2]
[338893445,1727033443644,-500.0,0.0002127,2]
[338893446,1727033443653,-500.0,0.0002127,2]
[338893447,1727033443663,-500.0,0.0002127,2]
[338893448,1727033443673,-500.0,0.0002127,2]
[338893449,1727033443682,-333.44258823,0.0002127,2]
[338893450,1727033443694,-500.0,0.0002127,2]
[338893451,1727033443704,-500.0,0.0002127,2]
[338893452,1727033443712,-500.0,0.0002127,2]
[338893453,1727033443723,-500.0,0.0002127,2]
[338893454,1727033443734,-500.0,0.0002127,2]
[338893455,1727033443742,-500.0,0.0002127,2]
[338893456,1727033443751,-500.0,0.0002127,2]
[338893457,1727033443760,-500.0,0.0002127,2]
[338893458,1727033443770,-500.0,0.0002127,2]
[338893459,1727033443779,-500.0,0.0002127,2]
[338893461,1727033443788,-500.0,0.0002127,2]
[338893463,1727033443797,-500.0,0.0002127,2]
[338893464,1727033443807,-451.30557754,0.0002127,2]
[338893465,1727033443816,-500.0,0.0002127,2]
[338893466,1727033443826,-500.0,0.0002127,2]
[338893467,1727033443835,-500.0,0.0002127,2]
[338893468,1727033443845,-500.0,0.0002127,2]
[338893469,1727033443855,-500.0,0.0002127,2]
[338893470,1727033443864,-500.0,0.0002127,2]
[338893471,1727033443874,-500.0,0.0002127,2]
[338893472,1727033443884,-500.0,0.0002127,2]
[338893473,1727033443894,-500.0,0.0002127,2]
[338893474,1727033443903,-500.0,0.0002127,2]
[338893475,1727033443913,-500.0,0.0002127,2]
[338893476,1727033443924,-500.0,0.0002127,2]
[338893477,1727033443934,-500.0,0.0002127,2]
[338893478,1727033443944,-500.0,0.0002127,2]
[338893479,1727033443953,-500.0,0.0002127,2]
[338893480,1727033443963,-500.0,0.0002127,2]
[338893481,1727033443972,-500.0,0.0002127,2]
[338893482,1727033443981,-500.0,0.0002127,2]
[338893483,1727033443991,-500.0,0.0002127,2]
[338893484,1727033444000,-500.0,0.0002127,2]
[338893485,1727033444009,-500.0,0.0002127,2]
[338893486,1727033444019,-500.0,0.0002127,2]
[338893487,1727033444029,-500.0,0.0002127,2]
[338893488,1727033444040,-500.0,0.0002127,2]
[338893489,1727033444050,-500.0,0.0002127,2]
[338893490,1727033444060,-335.0,0.0002127,2]
[338893491,1727033444069,-500.0,0.0002127,2]
[338893492,1727033444079,-500.0,0.0002127,2]
[338893493,1727033444089,-500.0,0.0002127,2]
[338893494,1727033444099,-56667.928004,0.00021271,3]
[338893495,1727033444108,-61668.7766613,0.00021271,3]
[338893496,1727033444122,-151.0,0.0002129,2]
[338893497,1727033444133,-151.0,0.0002129,2]
[338893498,1727033444143,-151.0,0.0002129,2]
[338893499,1727033444154,-150.0,0.000213,2]
[338893500,1727033444164,-153.0,0.000213,2]
[338893501,1727033444173,-153.0,0.000213,2]
[338893502,1727033444183,-150.112233,0.000213,4]
[338893503,1727033444192,-150.112233,0.000213,5]
[338893504,1727033444201,-150.112233,0.000213,5]
[338893505,1727033444211,-150.112233,0.000213,2]
[338893506,1727033444220,-150.112233,0.000213,4]
[338893507,1727033444229,-150.112233,0.000213,3]
[338893508,1727033444241,-150.112233,0.000213,4]
[338893509,1727033444250,-150.112233,0.000213,5]
[338893510,1727033444260,-153.0,0.000213,2]
[338893511,1727033444270,-151.0,0.00021301,2]
[338893512,1727033444279,-155.524285,0.00021301,2]
[338893513,1727033444288,-151.0,0.00021301,2]
[338893514,1727033444298,-151.0,0.00021301,2]
[338893515,1727033444307,-1013.74347672,0.0002131,2]
[338893516,1727033444317,-151.0,0.00021319,2]
[338893517,1727033444328,-151.0,0.00021319,2]
[338893518,1727033444338,-8152.00864422,0.00021329,2]
[338893519,1727033444348,-299.89910699,0.00021348,2]
[338893520,1727033444358,-500.0,0.00021348,2]
[338893521,1727033444368,-500.0,0.00021348,2]
[338893522,1727033444377,-175.59997392,0.00021348,2]
[338893523,1727033444390,-500.0,0.00021348,2]
[338893524,1727033444401,-500.0,0.00021348,2]
[338893525,1727033444412,-500.0,0.00021348,2]
[338893526,1727033444423,-500.0,0.00021348,2]
[338893527,1727033444435,-500.0,0.00021348,2]
[338893528,1727033444445,-500.0,0.00021348,2]
[338893529,1727033444455,-500.0,0.00021348,2]
[338893530,1727033444466,-500.0,0.00021348,2]
[338893531,1727033444476,-593.46528867,0.00021348,2]
[338893532,1727033444489,-500.0,0.00021348,2]
[338893533,1727033444500,-500.0,0.00021348,2]
[338893534,1727033444509,-500.0,0.00021348,2]
[338893535,1727033444520,-500.0,0.00021348,2]
[338893536,1727033444529,-500.0,0.00021348,2]
[338893537,1727033444539,-500.0,0.00021348,2]
[338893538,1727033444550,-500.0,0.00021348,2]
[338893539,1727033444560,-500.0,0.00021348,2]
[338893540,1727033444569,-500.0,0.00021348,2]
[338893541,1727033444579,-500.0,0.00021348,2]
[338893542,1727033444588,-500.0,0.00021348,2]
[338893543,1727033444599,-500.0,0.00021348,2]
[338893544,1727033444609,-500.0,0.00021348,2]
[338893545,1727033444619,-321.8187016,0.00021348,2]
[338893546,1727033444629,-56667.928004,0.00021349,3]
[338893547,1727033444638,-16097.6767127,0.00021349,3]
[338893548,1727033444653,-353.1278318,0.00021349,3]
[338893549,1727033444695,-311.69803547,0.00021349,3]
[338893550,1727033444707,-7416.12424416,0.00021349,3]
[338893551,1727033444719,-1075.48864695,0.00021349,3]
[338893555,1727033446953,-36414.66119022,0.00021349,3]
[338893556,1727033446962,-151.0,0.0002135,2]
[338893557,1727033446972,-151.0,0.0002135,2]
[338893558,1727033446981,-151.0,0.0002135,2]
[338893559,1727033446990,-151.0,0.0002135,2]
[338893560,1727033447000,-802.501596,0.0002135,2]
[338893561,1727033447010,-802.501596,0.0002135,2]
[338893562,1727033447020,-604.077716,0.0002135,2]
[338893563,1727033447030,-604.077716,0.0002135,2]
[338893564,1727033447039,-151.0,0.0002135,2]
[338893565,1727033447049,-151.0,0.0002135,2]
[338893566,1727033447058,-622.27000001,0.0002135,2]
[338893567,1727033447067,-663.767639,0.00021359,2]
[338893568,1727033447077,-663.767639,0.00021359,2]
[338893569,1727033447178,-331.086228,0.00021359,2]
[338893570,1727033447191,-331.086228,0.00021359,2]
[338893571,1727033447200,-151.0,0.00021359,2]
[338893572,1727033447210,-152.156096,0.00021359,2]
[338893573,1727033447220,-151.0,0.00021359,2]
[338893574,1727033447229,-151.0,0.00021359,2]
[338893575,1727033447240,-156.286339,0.00021359,2]
[338893576,1727033447250,-156.286339,0.00021359,2]
[338893577,1727033447259,-2208.763044,0.00021359,2]
[338893578,1727033447269,-2208.763044,0.00021359,2]
[338893579,1727033447278,-166.898141,0.00021359,2]
[338893580,1727033447288,-1606.744345,0.00021359,2]
[338893581,1727033447299,-166.898141,0.00021359,2]
[338893582,1727033447309,-1606.744345,0.00021359,2]
[338893583,1727033447319,-186.89613,0.00021359,2]
[338893584,1727033447328,-186.89613,0.00021359,2]
[338893585,1727033447338,-669.81855,0.00021359,2]
[338893586,1727033447347,-1990.320676,0.00021359,2]
[338893587,1727033447356,-669.81855,0.00021359,2]
[338893588,1727033447365,-1990.320676,0.00021359,2]
[338893589,1727033447382,-1082.689152,0.00021359,2]
[338893590,1727033447392,-1082.689152,0.00021359,2]
[338893591,1727033447402,-5780.864754,0.00021359,2]
[338893592,1727033447412,-5780.864754,0.00021359,2]
[338893593,1727033447421,-217.25562,0.00021359,2]
[338893594,1727033447431,-217.25562,0.00021359,2]
[338893595,1727033447440,-467.00011,0.00021359,2]
[338893596,1727033447449,-1144.710021,0.00021359,2]
[338893597,1727033447459,-467.00011,0.00021359,2]
[338893598,1727033447469,-1144.710021,0.00021359,2]
[338893599,1727033447479,-151.0,0.00021359,2]
[338893600,1727033447489,-374.006345,0.00021359,2]
[338893601,1727033447498,-374.006345,0.00021359,2]
[338893602,1727033447508,-160.0,0.0002136,2]
[338893603,1727033447517,-1000.0,0.0002136,2]
[338893604,1727033447527,-1000.0,0.0002136,7]
[338893605,1727033447536,-1000.0,0.0002136,10]
[338893606,1727033447545,-56667.928004,0.0002136,3]
[338893607,1727033447555,-61668.7766613,0.0002136,3]
[338893608,1727033447564,-113335.856008,0.00021361,3]
[338893609,1727033447574,-105774.87243431,0.00021361,3]
[338893610,1727033447586,-1957.74991629,0.00021361,3]
[338893611,1727033447597,-985.85,0.00021361,3]
[338893612,1727033458735,457.03033191,0.00020695,2]
[338893613,1727033468202,250.0,0.00020497,2]
[338893614,1727033468436,250.0,0.00020553,2]
[338893615,1727033468718,250.0,0.00020609,2]
[338893616,1727033468951,250.0,0.00020665,2]
[338893619,1727033527393,153.30750825,0.00020622,2]
[338893656,1727034335159,-425.324416,0.00018642,2]
[338893657,1727034335182,-152.29800923,0.00018917,2]
[338893658,1727034335207,-300.0,0.00019017,2]
[338893659,1727034335231,-300.0,0.00019017,2]
[338893660,1727034335255,-10117.63727268,0.00019018,2]
[338893662,1727034343120,-152.29800917,0.00019002,2]
[338893663,1727034343292,-3633.48582387,0.00019018,2]
[338893670,1727034552099,-152.29800917,0.00018478,2]
[338893671,1727034552127,-3941.2398832,0.00018564,2]
[338893672,1727034552154,-262.9863174,0.00018578,2]
[338893673,1727034552177,-300.0,0.00018635,2]
[338893674,1727034552199,-300.0,0.00018635,2]
[338893675,1727034552222,-4282.10272254,0.00018636,2]
[338893676,1727034553093,-2725.94985666,0.00018636,2]
[338893677,1727034553117,-152.29800917,0.00018694,2]
[338893678,1727034553140,-152.29800917,0.0001891,2]
[338893679,1727034553163,-8442.25704794,0.00019018,2]
[338893680,1727034554206,-2706.61985551,0.00019018,2]
[338893681,1727034554228,-152.29800917,0.00019126,2]
[338893682,1727034554253,-250.0,0.00019131,2]
[338893683,1727034554273,-180.805934,0.00019178,2]
[338893684,1727034554295,-250.0,0.00019184,2]
[338893685,1727034554316,-250.0,0.00019236,2]
[338893686,1727034554338,-250.0,0.00019289,2]
[338893687,1727034554358,-250.0,0.00019341,2]
[338893688,1727034554380,-250.0,0.00019394,2]
[338893689,1727034554401,-250.0,0.00019446,2]
[338893690,1727034554421,-250.0,0.00019499,2]
[338893691,1727034554442,-250.0,0.00019551,2]
[338893692,1727034554465,-250.0,0.00019604,2]
[338893693,1727034554488,-250.0,0.00019656,2]
[338893694,1727034554509,-250.0,0.00019708,2]
[338893695,1727034554530,-174.12944,0.00019724,2]
[338893696,1727034554551,-250.0,0.00019761,2]
[338893697,1727034554574,-250.0,0.00019813,2]
[338893698,1727034554596,-2855.24090994,0.0001986,2]
[338893699,1727034554619,-250.0,0.00019866,2]
[338893700,1727034554640,-250.0,0.00019918,2]
[338893701,1727034554662,-6205.87362092,0.00019946,2]
[338893702,1727034554715,190.4456144,0.00018368,2]
[338893703,1727034558701,152.29800917,0.00019342,2]
[338893704,1727034562101,-394.6671147,0.0001996,2]
[338893705,1727034563682,152.29800917,0.00019557,2]
[338893706,1727034568658,152.29800917,0.00019773,2]
[338893740,1727034631735,-250.0,0.00019971,2]
[338893742,1727034631746,-152.29800917,0.00019989,2]
[338893744,1727034631756,-250.0,0.00020023,2]
[338893746,1727034631765,-250.0,0.00020076,2]
[338893747,1727034631775,-250.0,0.00020128,2]
[338893749,1727034631784,-152.29800917,0.00020205,2]
[338893751,1727034631794,-150.0,0.00020305,2]
[338893753,1727034631803,-150.0,0.00020305,2]
[338893754,1727034631813,-4723.15266719,0.00020703,2]
[338893757,1727034632499,11751.1353502,0.00019706,2]
[338893758,1727034632524,11356.69237805,0.00019706,2]
[338893759,1727034632549,995.37300677,0.00019706,2]
[338893796,1727034639721,-796.79926498,0.00019706,2]
[338893797,1727034639730,-1482.72095373,0.00020703,2]
[338893798,1727034639740,-157.42288929,0.00020704,7]
[338893799,1727034639749,-300.0,0.00020822,2]
[338893800,1727034639759,-300.0,0.00020822,2]
[338893801,1727034639768,-6205.87362092,0.00020823,2]
[338893802,1727034639778,-150.0,0.00020981,2]
[338893803,1727034639788,-199.51058732,0.0002105,2]
[338893804,1727034639797,-156.41261181,0.00021059,2]
[338893805,1727034639806,-199.51058731,0.00021061,2]
[338893806,1727034639816,-1000.0,0.00021072,2]
[338893807,1727034639827,-199.51058731,0.00021072,2]
[338893808,1727034639836,-153.93,0.00021139,3]
[338893809,1727034639845,-461.79,0.00021139,3]
[338893810,1727034639855,-500.0,0.00021148,2]
[338893811,1727034639865,-500.0,0.00021148,2]
[338893812,1727034639875,-170.5566532,0.00021148,2]
[338893813,1727034639884,-450.00395345,0.00021148,2]
[338893814,1727034639894,-500.0,0.00021148,2]
[338893815,1727034639904,-500.0,0.00021148,2]
[338893816,1727034639914,-500.0,0.00021148,2]
[338893817,1727034639923,-500.0,0.00021148,2]
[338893818,1727034639933,-500.0,0.00021148,2]
[338893819,1727034639943,-500.0,0.00021148,2]
[338893820,1727034639953,-500.0,0.00021148,2]
[338893821,1727034639963,-500.0,0.00021148,2]
[338893822,1727034639972,-500.0,0.00021148,2]
[338893823,1727034639982,-500.0,0.00021148,2]
[338893824,1727034639993,-500.0,0.00021148,2]
[338893825,1727034640002,-500.0,0.00021148,2]
[338893826,1727034640015,-500.0,0.00021148,2]
[338893827,1727034640025,-500.0,0.00021148,2]
[338893828,1727034640034,-500.0,0.00021148,2]
[338893829,1727034640044,-500.0,0.00021148,2]
[338893830,1727034640054,-500.0,0.00021148,2]
[338893831,1727034640063,-500.0,0.00021148,2]
[338893832,1727034640072,-500.0,0.00021148,2]
[338893833,1727034640082,-651.30557754,0.00021148,2]
[338893834,1727034640091,-500.0,0.00021148,2]
[338893835,1727034640101,-500.0,0.00021148,2]
[338893836,1727034640110,-500.0,0.00021148,2]
[338893837,1727034640121,-500.0,0.00021148,2]
[338893838,1727034640131,-233.44258823,0.00021148,2]
[338893839,1727034640142,-500.0,0.00021148,2]
[338893840,1727034640152,-500.0,0.00021148,2]
[338893841,1727034640162,-500.0,0.00021148,2]
[338893842,1727034640173,-500.0,0.00021148,2]
[338893843,1727034640186,-500.0,0.00021148,2]
[338893844,1727034640196,-500.0,0.00021148,2]
[338893845,1727034640207,-500.0,0.00021148,2]
[338893846,1727034640217,-500.0,0.00021148,2]
[338893847,1727034640227,-500.0,0.00021148,2]
[338893848,1727034640237,-500.0,0.00021148,2]
[338893849,1727034640246,-500.0,0.00021148,2]
[338893850,1727034640256,-500.0,0.00021148,2]
[338893851,1727034640265,-500.0,0.00021148,2]
[338893852,1727034640274,-500.0,0.00021148,2]
[338893853,1727034640284,-500.0,0.00021148,2]
[338893854,1727034640294,-500.0,0.00021148,2]
[338893855,1727034640304,-500.0,0.00021148,2]
[338893856,1727034640313,-500.0,0.00021148,2]
[338893857,1727034640323,-500.0,0.00021148,2]
[338893858,1727034640332,-500.0,0.00021148,2]
[338893859,1727034640342,-500.0,0.00021148,2]
[338893860,1727034640351,-500.0,0.00021148,2]
[338893861,1727034640361,-500.0,0.00021148,2]
[338893862,1727034640372,-500.0,0.00021148,2]
[338893863,1727034640382,-500.0,0.00021148,2]
[338893864,1727034640392,-500.0,0.00021148,2]
[338893865,1727034640402,-500.0,0.00021148,2]
[338893866,1727034640411,-500.0,0.00021148,2]
[338893867,1727034640421,-500.0,0.00021148,2]
[338893868,1727034640430,-500.0,0.00021148,2]
[338893869,1727034640440,-500.0,0.00021148,2]
[338893870,1727034640450,-500.0,0.00021148,2]
[338893871,1727034640459,-550.0,0.00021148,2]
[338893872,1727034640469,-500.0,0.00021148,2]
[338893873,1727034640479,-500.0,0.00021148,2]
[338893874,1727034640488,-500.0,0.00021148,2]
[338893875,1727034640498,-500.0,0.00021148,2]
[338893876,1727034640507,-49836.5708852,0.00021149,3]
[338893877,1727034640518,-46982.5365445,0.00021149,3]
[338893878,1727034640527,-1000.0,0.0002115,2]
[338893879,1727034640541,-1000.0,0.0002115,2]
[338893880,1727034640551,-1000.0,0.0002115,2]
[338893881,1727034640561,-1000.0,0.0002115,2]
[338893882,1727034640570,-299.89910699,0.0002117,2]
[338893883,1727034640580,-500.0,0.0002117,2]
[338893884,1727034640590,-500.0,0.0002117,2]
[338893885,1727034640599,-500.0,0.0002117,2]
[338893886,1727034640610,-500.0,0.0002117,2]
[338893887,1727034640620,-500.0,0.0002117,2]
[338893888,1727034640630,-500.0,0.0002117,2]
[338893889,1727034640639,-500.0,0.0002117,2]
[338893890,1727034640648,-500.0,0.0002117,2]
[338893891,1727034640658,-175.59997392,0.0002117,2]
[338893892,1727034640669,-500.0,0.0002117,2]
[338893893,1727034640678,-500.0,0.0002117,2]
[338893894,1727034640687,-250.47935256,0.0002117,2]
[338893895,1727034640696,-500.0,0.0002117,2]
[338893896,1727034640706,-593.46528867,0.0002117,2]
[338893897,1727034640715,-500.0,0.0002117,2]
[338893898,1727034640725,-500.0,0.0002117,2]
[338893899,1727034640735,-500.0,0.0002117,2]
[338893900,1727034640745,-500.0,0.0002117,2]
[338893901,1727034640754,-500.0,0.0002117,2]
[338893902,1727034640763,-500.0,0.0002117,2]
[338893903,1727034640773,-200.0,0.0002117,2]
[338893904,1727034640850,-500.0,0.0002117,2]
[338893905,1727034640869,-500.0,0.0002117,2]
[338893906,1727034640887,-500.0,0.0002117,2]
[338893907,1727034640899,-99673.1417705,0.00021171,3]
[338893908,1727034640909,-22415.21595852,0.00021171,3]
[338893919,1727034645725,-411.11179919,0.00021171,3]
[338893920,1727034645778,-1173.6576485,0.00021171,3]
[338893921,1727034645790,-300.78721,0.00021171,3]
[338893922,1727034645802,-69664.30047279,0.00021171,3]
[338893923,1727034645812,-153.0,0.00021178,2]
[338893924,1727034645821,-152.745032,0.00021181,2]
[338893925,1727034645832,-1030.239019,0.00021181,2]
[338893926,1727034645841,-481.311267,0.00021181,2]
[338893927,1727034645850,-1030.239019,0.00021181,2]
[338893928,1727034645859,-481.311267,0.00021181,2]
[338893929,1727034645869,-151.0,0.00021181,2]
[338893930,1727034645878,-68873.23754818,0.00021181,2]
[338893931,1727034645887,-150.112233,0.000212,3]
[338893932,1727034645897,-150.112233,0.000212,5]
[338893933,1727034645907,-150.112233,0.000212,5]
[338893934,1727034645916,-150.112233,0.000212,2]
[338893935,1727034645926,-150.112233,0.000212,3]
[338893936,1727034645935,-150.112233,0.000212,4]
[338893937,1727034645946,-150.112233,0.000212,4]
[338893938,1727034645955,-1244.06809065,0.00021209,2]
[338893939,1727034645966,-49836.5708852,0.00021234,3]
[338893940,1727034645975,-4298.69403523,0.00021234,3]
[338893941,1727034645987,-3821.41430996,0.00021234,3]
[338893942,1727034645999,-548.53406688,0.00021234,3]
[338893943,1727034646010,-613.5885,0.00021234,3]
[338893985,1727035543159,-1340.25092143,0.00018747,2]
[338894007,1727035607100,-1000.0,0.00016,2]
[338894008,1727035607122,-1000.0,0.00016,2]
[338894009,1727035607143,-1000.0,0.00016,2]
[338894010,1727035607163,-485.0,0.00016,2]
[338894011,1727035607185,-346.45221907,0.00018747,2]
[338894014,1727035636259,-228.68078846,0.00018747,2]
[338894021,1727035745089,-1532.0987194,0.00018625,2]
[338894022,1727035745110,-152.29800917,0.00018679,2]
[338894023,1727035745130,-321.76858744,0.00018747,2]
[338894024,1727035745151,-443.0712101,0.00018779,2]
[338894025,1727035745172,-158.8562332,0.00018897,2]
[338894026,1727035745192,-165.422968,0.00019178,2]
[338894027,1727035745212,-475.340534,0.00019381,2]
[338894028,1727035745233,-300.0,0.0001946,2]
[338894029,1727035745258,-300.0,0.0001946,2]
[338894030,1727035745282,-8177.77710621,0.00019461,2]
[338894031,1727035750289,-16722.22289379,0.00019461,2]
[338894032,1727035750311,-190.322068,0.00019518,2]
[338894033,1727035750336,-241.746924,0.00019837,2]
[338894034,1727035750358,-241.746924,0.00019891,2]
[338894035,1727035750380,-241.746924,0.00019946,2]
[338894037,1727035764083,-241.746924,0.0002,2]
[338894038,1727035764107,-241.746924,0.00020055,2]
[338894039,1727035764133,-241.746924,0.00020109,2]
[338894040,1727035764156,-241.746924,0.00020163,2]
[338894041,1727035764177,-241.746924,0.00020218,2]
[338894042,1727035764199,-241.746924,0.00020272,2]
[338894043,1727035764221,-241.746924,0.00020327,2]
[338894044,1727035764244,-241.746924,0.00020381,2]
[338894045,1727035764268,-241.746924,0.00020435,2]
[338894046,1727035764291,-241.746924,0.0002049,2]
[338894047,1727035764312,-503.15297395,0.00020518,2]
[338894048,1727035764335,-241.746924,0.00020544,2]
[338894049,1727035764357,-241.746924,0.00020599,2]
[338894050,1727035764378,-6205.87362092,0.00020638,2]
[338894051,1727035764399,-241.746924,0.00020653,2]
[338894068,1727035812841,163.413424,0.00020142,2]
[338894069,1727035813086,163.413424,0.00020292,2]
[338894070,1727035813323,163.413424,0.00020442,2]
[338894071,1727035813552,163.413424,0.00020592,2]
[338894118,1727035831957,-163.413424,0.00020742,2]
[338894120,1727035831967,-500.0,0.00020823,2]
[338894122,1727035831977,-638.07532116,0.00020843,2]
[338894124,1727035831986,-163.413424,0.00020892,2]